[Event "*** SCC Grand Prix: Titled Tuesday Blitz"]
[Site "Chess.com"]
[Date "2020.09.08"]
[Round "3"]
[White "ajedrezsinlimites"]
[Black "Witik"]
[Result "1-0"]
[WhiteElo "2454"]
[BlackElo "2699"]
[TimeControl "180+1"]
[EndTime "10:28:58 PDT"]
[Termination "ajedrezsinlimites won by resignation"]

1. e4 {[%clk 0:03:00.9]} 1... c5 {[%clk 0:02:59.1]} 2. Nf3 {[%clk 0:03:00.9]}
2... Nc6 {[%clk 0:02:59.2]} 3. d4 {[%clk 0:03:01.1]} 3... cxd4 {[%clk
0:03:00.1]} 4. Nxd4 {[%clk 0:03:01.5]} 4... g6 {[%clk 0:03:00.7]} 5. c4 {[%clk
0:03:01]} 5... Nf6 {[%clk 0:02:58.4]} 6. Nc3 {[%clk 0:03:00.1]} 6... d6 {[%clk
0:02:57.3]} 7. Be2 {[%clk 0:02:59.5]} 7... Bg7 {[%clk 0:02:53.7]} 8. Be3 {[%clk
0:02:59.4]} 8... O-O {[%clk 0:02:52.6]} 9. O-O {[%clk 0:02:59.3]} 9... Nxd4
{[%clk 0:02:52.2]} 10. Bxd4 {[%clk 0:02:58.8]} 10... Be6 {[%clk 0:02:52.2]} 11.
Rc1 {[%clk 0:02:52.4]} 11... Qa5 {[%clk 0:02:51.4]} 12. b3 {[%clk 0:02:41.1]}
12... Rfc8 {[%clk 0:02:49.5]} 13. f3 {[%clk 0:02:38.3]} 13... a6 {[%clk
0:02:37]} 14. a4 {[%clk 0:02:37.1]} 14... Nd7 {[%clk 0:02:35.3]} 15. Nd5 {[%clk
0:02:28.6]} 15... Bxd5 {[%clk 0:02:27.5]} 16. exd5 {[%clk 0:02:23.3]} 16...
Bxd4+ {[%clk 0:02:22.6]} 17. Qxd4 {[%clk 0:02:21.9]} 17... Qc5 {[%clk
0:02:23.2]} 18. Rfd1 {[%clk 0:02:15.6]} 18... Qxd4+ {[%clk 0:01:57.2]} 19. Rxd4
{[%clk 0:02:16.5]} 19... b5 {[%clk 0:01:57.9]} 20. a5 {[%clk 0:02:10.5]} 20...
b4 {[%clk 0:01:54]} 21. Ra1 {[%clk 0:02:04.2]} 21... Nc5 {[%clk 0:01:54]} 22.
Bd1 {[%clk 0:02:02]} 22... Rd8 {[%clk 0:01:49.7]} 23. Bc2 {[%clk 0:01:55.9]}
23... e5 {[%clk 0:01:49]} 24. dxe6 {[%clk 0:01:52.1]} 24... Nxe6 {[%clk
0:01:22.6]} 25. Rd2 {[%clk 0:01:49.6]} 25... Ra7 {[%clk 0:01:20.3]} 26. Rad1
{[%clk 0:01:48.4]} 26... Rad7 {[%clk 0:01:20.2]} 27. Kf2 {[%clk 0:01:44.9]}
27... Nc5 {[%clk 0:01:20.5]} 28. Rd5 {[%clk 0:01:41.8]} 28... Kf8 {[%clk
0:01:19.1]} 29. h4 {[%clk 0:01:39.1]} 29... Ke7 {[%clk 0:01:16.8]} 30. h5 {[%clk
0:01:40]} 30... Kf6 {[%clk 0:01:11.6]} 31. g4 {[%clk 0:01:33.9]} 31... Ne6
{[%clk 0:01:09.6]} 32. Kg3 {[%clk 0:01:31]} 32... h6 {[%clk 0:01:01.3]} 33. f4
{[%clk 0:01:22.3]} 33... g5 {[%clk 0:01:00.4]} 34. fxg5+ {[%clk 0:01:18.2]}
34... Nxg5 {[%clk 0:00:59.8]} 35. Bf5 {[%clk 0:01:14.8]} 35... Ne6 {[%clk
0:00:55.4]} 36. c5 {[%clk 0:01:02.7]} 36... Ke7 {[%clk 0:00:54.2]} 37. Bxe6
{[%clk 0:00:53.8]} 37... Kxe6 {[%clk 0:00:43]} 38. Rxd6+ {[%clk 0:00:45.6]}
38... Rxd6 {[%clk 0:00:43.9]} 39. Rxd6+ {[%clk 0:00:45.4]} 39... Rxd6 {[%clk
0:00:44.8]} 40. cxd6 {[%clk 0:00:44.2]} 40... Kxd6 {[%clk 0:00:45.7]} 41. g5
{[%clk 0:00:36.3]} 41... Ke5 {[%clk 0:00:41.9]} 42. gxh6 {[%clk 0:00:36]} 42...
Kf6 {[%clk 0:00:41.5]} 43. Kg4 {[%clk 0:00:36.3]} 1-0

[Event "*** SCC Grand Prix: Titled Tuesday Blitz"]
[Site "Chess.com"]
[Date "2020.09.08"]
[Round "3"]
[White "peixe64"]
[Black "GMHess"]
[Result "0-1"]
[WhiteElo "2348"]
[BlackElo "2743"]
[TimeControl "180+1"]
[EndTime "10:29:02 PDT"]
[Termination "GMHess won on time"]

1. e4 {[%clk 0:03:00.9]} 1... e6 {[%clk 0:02:58.4]} 2. d4 {[%clk 0:03:00.8]}
2... d5 {[%clk 0:02:55.5]} 3. Nc3 {[%clk 0:03:01.1]} 3... Bb4 {[%clk 0:02:55.1]}
4. e5 {[%clk 0:03:00.6]} 4... Qd7 {[%clk 0:02:55.6]} 5. a3 {[%clk 0:02:51.8]}
5... Bxc3+ {[%clk 0:02:49.8]} 6. bxc3 {[%clk 0:02:52.7]} 6... Ne7 {[%clk
0:02:48.5]} 7. Nf3 {[%clk 0:02:51.5]} 7... b6 {[%clk 0:02:46.5]} 8. a4 {[%clk
0:02:50.1]} 8... Nbc6 {[%clk 0:02:46.3]} 9. Ba3 {[%clk 0:02:46.4]} 9... Bb7
{[%clk 0:02:40.6]} 10. Bd3 {[%clk 0:02:45.2]} 10... O-O-O {[%clk 0:02:32.7]} 11.
O-O {[%clk 0:02:39.4]} 11... h6 {[%clk 0:02:21.4]} 12. Qe2 {[%clk 0:02:25.5]}
12... Kb8 {[%clk 0:01:54.6]} 13. Bb5 {[%clk 0:02:23.5]} 13... Qc8 {[%clk
0:01:50.6]} 14. a5 {[%clk 0:02:12]} 14... a6 {[%clk 0:01:47.5]} 15. axb6 {[%clk
0:01:29.5]} 15... axb5 {[%clk 0:01:12.3]} 16. Qxb5 {[%clk 0:01:19.5]} 16... cxb6
{[%clk 0:01:03.8]} 17. Bd6+ {[%clk 0:01:03.4]} 17... Rxd6 {[%clk 0:01:03.8]} 18.
exd6 {[%clk 0:01:04.3]} 18... Nf5 {[%clk 0:01:02.8]} 19. Ne5 {[%clk 0:00:34.4]}
19... Nxd6 {[%clk 0:00:59]} 20. Qxb6 {[%clk 0:00:33.3]} 20... Qc7 {[%clk
0:00:48.4]} 21. Nxc6+ {[%clk 0:00:29.2]} 21... Qxc6 {[%clk 0:00:48.5]} 22. Qa7+
{[%clk 0:00:29.5]} 22... Kc7 {[%clk 0:00:43.3]} 23. Qa5+ {[%clk 0:00:12.4]}
23... Kd7 {[%clk 0:00:42.7]} 24. Qb4 {[%clk 0:00:10.5]} 24... Rc8 {[%clk
0:00:39]} 25. Ra7 {[%clk 0:00:06.9]} 25... Rc7 {[%clk 0:00:37.6]} 26. Rb1 {[%clk
0:00:06.3]} 26... Bc8 {[%clk 0:00:24.6]} 27. Rxc7+ {[%clk 0:00:05.7]} 27... Qxc7
{[%clk 0:00:25.5]} 28. g3 {[%clk 0:00:04.9]} 28... Ke7 {[%clk 0:00:23]} 29. Ra1
{[%clk 0:00:03.3]} 29... Kf6 {[%clk 0:00:22]} 0-1

[Event "*** SCC Grand Prix: Titled Tuesday Blitz"]
[Site "Chess.com"]
[Date "2020.09.08"]
[Round "3"]
[White "fighter2jz"]
[Black "XiaoKangZhong"]
[Result "1-0"]
[WhiteElo "2711"]
[BlackElo "2421"]
[TimeControl "180+1"]
[EndTime "10:29:03 PDT"]
[Termination "fighter2jz won by resignation"]

1. e4 {[%clk 0:03:00.9]} 1... c6 {[%clk 0:02:57.1]} 2. d4 {[%clk 0:02:59.6]}
2... d5 {[%clk 0:02:49]} 3. e5 {[%clk 0:02:43.2]} 3... c5 {[%clk 0:02:46.6]} 4.
dxc5 {[%clk 0:02:40.8]} 4... Nc6 {[%clk 0:02:47.5]} 5. Nf3 {[%clk 0:02:34]} 5...
Bg4 {[%clk 0:02:44.6]} 6. c3 {[%clk 0:02:25.5]} 6... e6 {[%clk 0:02:40.7]} 7. b4
{[%clk 0:02:20]} 7... a6 {[%clk 0:02:36.4]} 8. Bf4 {[%clk 0:02:15.9]} 8... Nge7
{[%clk 0:02:34]} 9. Bd3 {[%clk 0:01:49.5]} 9... d4 {[%clk 0:01:56.3]} 10. O-O
{[%clk 0:01:34.8]} 10... Nd5 {[%clk 0:01:43.7]} 11. Bg3 {[%clk 0:01:14.2]} 11...
dxc3 {[%clk 0:01:38.6]} 12. a3 {[%clk 0:01:12.1]} 12... a5 {[%clk 0:01:04.8]}
13. b5 {[%clk 0:00:48.2]} 13... Nd4 {[%clk 0:01:04]} 14. Be4 {[%clk 0:00:45.3]}
14... Nxb5 {[%clk 0:00:37.6]} 15. a4 {[%clk 0:00:40.8]} 15... Nbc7 {[%clk
0:00:37.5]} 16. Qb3 {[%clk 0:00:38.4]} 16... Bxc5 {[%clk 0:00:32.8]} 17. Nxc3
{[%clk 0:00:38.5]} 17... Bxf3 {[%clk 0:00:27.3]} 18. Bxf3 {[%clk 0:00:35.9]}
18... Nxc3 {[%clk 0:00:27.6]} 19. Qxc3 {[%clk 0:00:31.3]} 19... Bd4 {[%clk
0:00:28]} 20. Qa3 {[%clk 0:00:31.6]} 20... Bxa1 {[%clk 0:00:28]} 21. Bxb7 {[%clk
0:00:31.8]} 21... Qe7 {[%clk 0:00:24.2]} 22. Bc6+ {[%clk 0:00:30.7]} 22... Kd8
{[%clk 0:00:23.2]} 23. Rd1+ {[%clk 0:00:28.4]} 23... Nd5 {[%clk 0:00:21.7]} 24.
Bh4 {[%clk 0:00:21]} 24... f6 {[%clk 0:00:15.2]} 25. Qxa1 {[%clk 0:00:21.1]}
25... Ra6 {[%clk 0:00:11.4]} 26. exf6 {[%clk 0:00:19.9]} 26... gxf6 {[%clk
0:00:11]} 27. Bxf6 {[%clk 0:00:20.1]} 27... Rxc6 {[%clk 0:00:09.7]} 28. Bxe7+
{[%clk 0:00:19.8]} 28... Kxe7 {[%clk 0:00:10.6]} 29. Qxh8 {[%clk 0:00:20]} 29...
Nc3 {[%clk 0:00:11.1]} 30. Qg7+ {[%clk 0:00:19.5]} 30... Ke8 {[%clk 0:00:11.5]}
31. Qd7+ {[%clk 0:00:19.7]} 31... Kf8 {[%clk 0:00:12]} 32. Qxc6 {[%clk
0:00:19.8]} 32... Nxd1 {[%clk 0:00:12.7]} 33. Qd6+ {[%clk 0:00:20.5]} 33... Kf7
{[%clk 0:00:12.8]} 34. Qxd1 {[%clk 0:00:21.4]} 1-0

[Event "*** SCC Grand Prix: Titled Tuesday Blitz"]
[Site "Chess.com"]
[Date "2020.09.08"]
[Round "3"]
[White "chenxiaoyuer"]
[Black "OparinGrigoriy"]
[Result "0-1"]
[WhiteElo "2462"]
[BlackElo "2940"]
[TimeControl "180+1"]
[EndTime "10:29:04 PDT"]
[Termination "OparinGrigoriy won by checkmate"]

1. e4 {[%clk 0:03:00.9]} 1... e5 {[%clk 0:02:55.8]} 2. Nf3 {[%clk 0:03:00.2]}
2... Nc6 {[%clk 0:02:56.2]} 3. Bb5 {[%clk 0:02:59.3]} 3... a6 {[%clk 0:02:56.7]}
4. Ba4 {[%clk 0:02:58.7]} 4... Nf6 {[%clk 0:02:57.4]} 5. d3 {[%clk 0:02:58]}
5... d6 {[%clk 0:02:56.6]} 6. c3 {[%clk 0:02:56.6]} 6... g6 {[%clk 0:02:56.9]}
7. O-O {[%clk 0:02:55.1]} 7... Bg7 {[%clk 0:02:57.3]} 8. Nbd2 {[%clk 0:02:53.2]}
8... O-O {[%clk 0:02:57.1]} 9. Re1 {[%clk 0:02:47.2]} 9... b5 {[%clk 0:02:44.6]}
10. Bc2 {[%clk 0:02:46.5]} 10... Bb7 {[%clk 0:02:44.7]} 11. d4 {[%clk
0:02:37.9]} 11... Re8 {[%clk 0:02:36.4]} 12. a4 {[%clk 0:02:18.6]} 12... exd4
{[%clk 0:02:32.8]} 13. cxd4 {[%clk 0:02:12]} 13... Nb4 {[%clk 0:02:33]} 14. Bb1
{[%clk 0:02:11.8]} 14... c5 {[%clk 0:02:33.4]} 15. d5 {[%clk 0:01:54.3]} 15...
Nd7 {[%clk 0:02:28.4]} 16. Ra3 {[%clk 0:01:38.4]} 16... c4 {[%clk 0:02:26.2]}
17. Nf1 {[%clk 0:01:13.2]} 17... Nc5 {[%clk 0:02:24.6]} 18. axb5 {[%clk
0:01:11.9]} 18... Nbd3 {[%clk 0:02:18.7]} 19. Bxd3 {[%clk 0:01:06.5]} 19... Nxd3
{[%clk 0:02:18.8]} 20. Rxd3 {[%clk 0:00:57.3]} 20... cxd3 {[%clk 0:02:18.3]} 21.
Qxd3 {[%clk 0:00:57.6]} 21... axb5 {[%clk 0:02:17.5]} 22. Nd4 {[%clk 0:00:48.9]}
22... b4 {[%clk 0:02:14.1]} 23. Qb5 {[%clk 0:00:33.7]} 23... Bxd4 {[%clk
0:02:01.7]} 24. Qxb7 {[%clk 0:00:28.1]} 24... Qf6 {[%clk 0:01:58.4]} 25. Ne3
{[%clk 0:00:25.3]} 25... Rab8 {[%clk 0:01:43.3]} 26. Qd7 {[%clk 0:00:18.3]}
26... Rxe4 {[%clk 0:01:41.4]} 27. Rf1 {[%clk 0:00:15.5]} 27... h5 {[%clk
0:01:37.3]} 28. b3 {[%clk 0:00:08.4]} 28... Rbe8 {[%clk 0:01:36.6]} 29. Qh3
{[%clk 0:00:07.1]} 29... Bc5 {[%clk 0:01:32]} 30. g3 {[%clk 0:00:05.5]} 30...
Qc3 {[%clk 0:01:29]} 31. Nc4 {[%clk 0:00:03.9]} 31... Qxb3 {[%clk 0:01:24.5]}
32. Nd2 {[%clk 0:00:03.7]} 32... Qxd5 {[%clk 0:01:22.6]} 33. Nxe4 {[%clk
0:00:03.5]} 33... Qxe4 {[%clk 0:01:23.5]} 34. Bb2 {[%clk 0:00:03.4]} 34... b3
{[%clk 0:01:19]} 35. Qd7 {[%clk 0:00:02.8]} 35... Qe2 {[%clk 0:01:13.1]} 36. Bf6
{[%clk 0:00:02.1]} 36... Qe6 {[%clk 0:01:12.8]} 37. Qxe6 {[%clk 0:00:01.5]}
37... Rxe6 {[%clk 0:01:12.8]} 38. Bb2 {[%clk 0:00:02.4]} 38... Re2 {[%clk
0:01:12.8]} 39. Bf6 {[%clk 0:00:03.3]} 39... b2 {[%clk 0:01:12.4]} 40. Bxb2
{[%clk 0:00:04.2]} 40... Rxb2 {[%clk 0:01:12.4]} 41. Kg2 {[%clk 0:00:05.1]}
41... Kg7 {[%clk 0:01:11.1]} 42. Rd1 {[%clk 0:00:06]} 42... Rxf2+ {[%clk
0:01:10.6]} 43. Kh3 {[%clk 0:00:06.7]} 43... g5 {[%clk 0:01:09.8]} 44. Rd5
{[%clk 0:00:07.6]} 44... Kg6 {[%clk 0:01:03.6]} 45. g4 {[%clk 0:00:06.5]} 45...
hxg4+ {[%clk 0:01:00.6]} 46. Kxg4 {[%clk 0:00:06.4]} 46... f5+ {[%clk
0:01:00.9]} 47. Rxf5 {[%clk 0:00:06.4]} 47... Rxf5 {[%clk 0:01:00.9]} 48. h4
{[%clk 0:00:07.3]} 48... Rf4+ {[%clk 0:01:01.2]} 49. Kg3 {[%clk 0:00:06.2]}
49... Rxh4 {[%clk 0:01:02.1]} 50. Kg2 {[%clk 0:00:06.4]} 50... d5 {[%clk
0:01:03]} 51. Kg3 {[%clk 0:00:06.5]} 51... Re4 {[%clk 0:01:03.6]} 52. Kg2 {[%clk
0:00:07.4]} 52... d4 {[%clk 0:01:04.5]} 53. Kg3 {[%clk 0:00:07.9]} 53... Kf5
{[%clk 0:01:04.9]} 54. Kg2 {[%clk 0:00:08.8]} 54... d3 {[%clk 0:01:05.8]} 55.
Kg3 {[%clk 0:00:08.7]} 55... d2 {[%clk 0:01:06.7]} 56. Kg2 {[%clk 0:00:09]}
56... d1=Q {[%clk 0:01:07]} 57. Kg3 {[%clk 0:00:09.9]} 57... Qd3+ {[%clk
0:01:07.6]} 58. Kg2 {[%clk 0:00:08.8]} 58... Re2+ {[%clk 0:01:08.5]} 59. Kh1
{[%clk 0:00:07.9]} 59... Qd1# {[%clk 0:01:09.4]} 0-1

[Event "*** SCC Grand Prix: Titled Tuesday Blitz"]
[Site "Chess.com"]
[Date "2020.09.08"]
[Round "3"]
[White "leejunhyeok"]
[Black "plumalka"]
[Result "0-1"]
[WhiteElo "2659"]
[BlackElo "2424"]
[TimeControl "180+1"]
[EndTime "10:29:06 PDT"]
[Termination "plumalka won by resignation"]

1. e4 {[%clk 0:02:59.6]} 1... c5 {[%clk 0:02:59.8]} 2. c3 {[%clk 0:02:58.9]}
2... d5 {[%clk 0:02:59.5]} 3. exd5 {[%clk 0:02:59.1]} 3... Qxd5 {[%clk
0:03:00.4]} 4. d4 {[%clk 0:02:59.6]} 4... e6 {[%clk 0:03:00]} 5. Nf3 {[%clk
0:02:59.9]} 5... Nc6 {[%clk 0:02:58.6]} 6. Na3 {[%clk 0:02:57.9]} 6... cxd4
{[%clk 0:02:52.7]} 7. Nb5 {[%clk 0:02:57.2]} 7... Bd6 {[%clk 0:02:23.4]} 8. Bc4
{[%clk 0:02:14.3]} 8... Qe4+ {[%clk 0:02:20.3]} 9. Be3 {[%clk 0:02:02.3]} 9...
Bb8 {[%clk 0:02:11.9]} 10. Nbxd4 {[%clk 0:01:37.1]} 10... Nf6 {[%clk 0:02:07.7]}
11. Bd3 {[%clk 0:01:31.7]} 11... Qd5 {[%clk 0:02:04.6]} 12. Nxc6 {[%clk
0:01:23.7]} 12... Qxc6 {[%clk 0:02:04.3]} 13. O-O {[%clk 0:01:21.1]} 13... O-O
{[%clk 0:02:03.7]} 14. Qe2 {[%clk 0:01:16.3]} 14... e5 {[%clk 0:02:03.2]} 15.
Bb5 {[%clk 0:01:09.7]} 15... Qe6 {[%clk 0:02:02.9]} 16. Bc4 {[%clk 0:01:09.1]}
16... Qc6 {[%clk 0:01:55.6]} 17. Rad1 {[%clk 0:01:05]} 17... Bg4 {[%clk
0:01:53.2]} 18. Bb5 {[%clk 0:00:52.7]} 18... Bxf3 {[%clk 0:01:50.4]} 19. gxf3
{[%clk 0:00:38.8]} 19... Qe6 {[%clk 0:01:49.2]} 20. Kh1 {[%clk 0:00:29.9]} 20...
Qh3 {[%clk 0:01:47.8]} 21. Rg1 {[%clk 0:00:29.9]} 21... e4 {[%clk 0:01:47.5]}
22. f4 {[%clk 0:00:30.5]} 22... h5 {[%clk 0:01:38]} 23. Rg3 {[%clk 0:00:30.4]}
23... Qh4 {[%clk 0:01:37.5]} 24. Rdg1 {[%clk 0:00:29]} 24... g6 {[%clk
0:01:33.5]} 25. f3 {[%clk 0:00:17.3]} 25... Bxf4 {[%clk 0:01:31.6]} 26. Bxf4
{[%clk 0:00:16.5]} 26... Qxf4 {[%clk 0:01:32.5]} 27. Bc4 {[%clk 0:00:14.7]}
27... Kh7 {[%clk 0:01:30.6]} 28. fxe4 {[%clk 0:00:13.8]} 28... Qxe4+ {[%clk
0:01:26.9]} 29. Qxe4 {[%clk 0:00:13.8]} 29... Nxe4 {[%clk 0:01:27.8]} 30. Re3
{[%clk 0:00:13.3]} 30... Nf2+ {[%clk 0:01:23.6]} 31. Kg2 {[%clk 0:00:13]} 31...
Ng4 {[%clk 0:01:24.5]} 32. Re7 {[%clk 0:00:12.1]} 32... Rae8 {[%clk 0:01:24.2]}
33. Rxb7 {[%clk 0:00:10.8]} 33... Ne3+ {[%clk 0:01:23.7]} 34. Kf3 {[%clk
0:00:11.2]} 34... Nxc4 {[%clk 0:01:23.9]} 35. Rg2 {[%clk 0:00:09.2]} 35... Re3+
{[%clk 0:01:21.4]} 36. Kf4 {[%clk 0:00:07.4]} 36... Re6 {[%clk 0:01:10.2]} 37.
Rxa7 {[%clk 0:00:04.3]} 37... Rf6+ {[%clk 0:01:10.1]} 38. Kg3 {[%clk 0:00:04.7]}
38... Re8 {[%clk 0:01:09.5]} 39. Rf2 {[%clk 0:00:02.6]} 39... Rxf2 {[%clk
0:01:05.8]} 40. Kxf2 {[%clk 0:00:03.5]} 40... Kg7 {[%clk 0:01:06.2]} 41. b3
{[%clk 0:00:03.5]} 41... Nb2 {[%clk 0:01:05.8]} 42. c4 {[%clk 0:00:04]} 42...
Nd3+ {[%clk 0:01:06]} 43. Kf3 {[%clk 0:00:03.3]} 43... g5 {[%clk 0:01:06.5]} 44.
h3 {[%clk 0:00:03]} 44... Kg6 {[%clk 0:01:05.9]} 45. Ra6+ {[%clk 0:00:03.1]}
45... Kf5 {[%clk 0:01:05.5]} 46. Ra5+ {[%clk 0:00:03.7]} 46... Ne5+ {[%clk
0:01:05.4]} 47. Ke3 {[%clk 0:00:04.4]} 47... g4 {[%clk 0:01:05.5]} 48. hxg4+
{[%clk 0:00:05.3]} 48... hxg4 {[%clk 0:01:05.9]} 49. c5 {[%clk 0:00:03.5]} 49...
Nc6+ {[%clk 0:01:05.3]} 50. Kf2 {[%clk 0:00:04.1]} 50... Nxa5 {[%clk 0:01:06.2]}
0-1

[Event "*** SCC Grand Prix: Titled Tuesday Blitz"]
[Site "Chess.com"]
[Date "2020.09.08"]
[Round "3"]
[White "BUITRONGHAO"]
[Black "Ladislav1969"]
[Result "1-0"]
[WhiteElo "2568"]
[BlackElo "2356"]
[TimeControl "180+1"]
[EndTime "10:29:07 PDT"]
[Termination "BUITRONGHAO won on time"]

1. e4 {[%clk 0:03:00.9]} 1... c5 {[%clk 0:02:59.5]} 2. Nf3 {[%clk 0:03:00.7]}
2... e6 {[%clk 0:02:59.9]} 3. d4 {[%clk 0:02:59.1]} 3... cxd4 {[%clk 0:03:00.8]}
4. Nxd4 {[%clk 0:02:59.7]} 4... a6 {[%clk 0:03:01.5]} 5. Bd3 {[%clk 0:02:59.4]}
5... b5 {[%clk 0:03:01.4]} 6. c4 {[%clk 0:02:50.9]} 6... bxc4 {[%clk 0:02:55.8]}
7. Bxc4 {[%clk 0:02:51.8]} 7... Bb7 {[%clk 0:02:50.5]} 8. Nc3 {[%clk 0:02:51.7]}
8... Nc6 {[%clk 0:02:24.6]} 9. O-O {[%clk 0:02:48.7]} 9... Rc8 {[%clk
0:02:20.7]} 10. Nxc6 {[%clk 0:02:39.3]} 10... Rxc6 {[%clk 0:02:18.7]} 11. Bb3
{[%clk 0:02:39.7]} 11... Bc5 {[%clk 0:02:11.3]} 12. Qg4 {[%clk 0:02:27.9]} 12...
Qf6 {[%clk 0:01:44.2]} 13. Qg3 {[%clk 0:02:14.6]} 13... Rc8 {[%clk 0:01:35.2]}
14. Bf4 {[%clk 0:01:59.7]} 14... Qg6 {[%clk 0:01:32.9]} 15. Rac1 {[%clk
0:01:48.4]} 15... Nf6 {[%clk 0:01:05.8]} 16. Qxg6 {[%clk 0:01:29.4]} 16... hxg6
{[%clk 0:01:04.7]} 17. e5 {[%clk 0:01:29.8]} 17... Nh5 {[%clk 0:00:32.2]} 18.
Bd2 {[%clk 0:01:27.9]} 18... f5 {[%clk 0:00:21.8]} 19. Na4 {[%clk 0:00:39.6]}
19... Bd4 {[%clk 0:00:21.2]} 20. Rxc8+ {[%clk 0:00:38.8]} 20... Bxc8 {[%clk
0:00:21]} 21. Rc1 {[%clk 0:00:39.5]} 21... Kf7 {[%clk 0:00:19.3]} 22. Bc3 {[%clk
0:00:35.5]} 22... Nf4 {[%clk 0:00:14.9]} 23. Bd1 {[%clk 0:00:27.6]} 23... Nd3
{[%clk 0:00:14.2]} 24. Rc2 {[%clk 0:00:26.5]} 24... Nxf2 {[%clk 0:00:10.8]} 25.
Bxd4 {[%clk 0:00:20.6]} 25... Ne4 {[%clk 0:00:04.4]} 26. Bf3 {[%clk 0:00:17.5]}
26... Bb7 {[%clk 0:00:04.1]} 27. Nc5 {[%clk 0:00:17]} 27... Bd5 {[%clk
0:00:02.7]} 28. Nxe4 {[%clk 0:00:16.3]} 28... fxe4 {[%clk 0:00:02.2]} 29. Be2
{[%clk 0:00:16.8]} 1-0

[Event "*** SCC Grand Prix: Titled Tuesday Blitz"]
[Site "Chess.com"]
[Date "2020.09.08"]
[Round "3"]
[White "Sjakkerntobi"]
[Black "Karina_Ivanova"]
[Result "0-1"]
[WhiteElo "2371"]
[BlackElo "2260"]
[TimeControl "180+1"]
[EndTime "10:29:07 PDT"]
[Termination "Karina_Ivanova won on time"]

1. e4 {[%clk 0:03:00.9]} 1... c6 {[%clk 0:02:59.7]} 2. Nc3 {[%clk 0:03:00.7]}
2... d5 {[%clk 0:02:59.3]} 3. Nf3 {[%clk 0:03:01.6]} 3... Bg4 {[%clk 0:02:57]}
4. h3 {[%clk 0:03:01.6]} 4... Bxf3 {[%clk 0:02:56.7]} 5. Qxf3 {[%clk 0:03:02.5]}
5... e6 {[%clk 0:02:56.1]} 6. d4 {[%clk 0:03:00.9]} 6... dxe4 {[%clk 0:02:53.6]}
7. Qxe4 {[%clk 0:03:01.8]} 7... Nf6 {[%clk 0:02:53]} 8. Qe3 {[%clk 0:03:01.5]}
8... Nd5 {[%clk 0:02:41.4]} 9. Nxd5 {[%clk 0:02:59.7]} 9... cxd5 {[%clk
0:02:38.8]} 10. c3 {[%clk 0:02:59.8]} 10... Nc6 {[%clk 0:02:37.5]} 11. Bd3
{[%clk 0:02:58.4]} 11... Bd6 {[%clk 0:02:35]} 12. O-O {[%clk 0:02:42.1]} 12...
O-O {[%clk 0:02:23.6]} 13. Bc2 {[%clk 0:02:42.1]} 13... Rc8 {[%clk 0:02:12.3]}
14. Qd3 {[%clk 0:02:41.2]} 14... g6 {[%clk 0:02:11.6]} 15. Bh6 {[%clk
0:02:40.1]} 15... Re8 {[%clk 0:02:11.4]} 16. f4 {[%clk 0:02:40.2]} 16... Bf8
{[%clk 0:02:11.1]} 17. Bg5 {[%clk 0:02:36.8]} 17... Be7 {[%clk 0:02:10.7]} 18.
Bh6 {[%clk 0:02:26.1]} 18... Bf8 {[%clk 0:02:10.4]} 19. Bxf8 {[%clk 0:02:26.1]}
19... Rxf8 {[%clk 0:02:09.8]} 20. g4 {[%clk 0:02:25.7]} 20... b5 {[%clk
0:01:54.2]} 21. f5 {[%clk 0:02:22.5]} 21... exf5 {[%clk 0:01:52.2]} 22. gxf5
{[%clk 0:02:22.8]} 22... Qg5+ {[%clk 0:01:33.2]} 23. Kh1 {[%clk 0:02:21.5]}
23... b4 {[%clk 0:01:30.9]} 24. Rg1 {[%clk 0:02:19.3]} 24... Qh5 {[%clk
0:01:24.4]} 25. Rg4 {[%clk 0:02:01.4]} 25... bxc3 {[%clk 0:01:20.2]} 26. bxc3
{[%clk 0:02:02.3]} 26... Ne7 {[%clk 0:01:17.5]} 27. Rag1 {[%clk 0:01:59.5]}
27... Rc6 {[%clk 0:01:01.7]} 28. Qf3 {[%clk 0:01:37.8]} 28... Kh8 {[%clk
0:00:38.5]} 29. Qg3 {[%clk 0:00:07]} 29... Nxf5 {[%clk 0:00:25]} 30. Bxf5 {[%clk
0:00:02]} 30... Qxf5 {[%clk 0:00:24.4]} 0-1

[Event "*** SCC Grand Prix: Titled Tuesday Blitz"]
[Site "Chess.com"]
[Date "2020.09.08"]
[Round "3"]
[White "Kotofeyca"]
[Black "suyu28"]
[Result "0-1"]
[WhiteElo "2359"]
[BlackElo "2567"]
[TimeControl "180+1"]
[EndTime "10:29:08 PDT"]
[Termination "suyu28 won on time"]

1. d4 {[%clk 0:03:00.9]} 1... Nf6 {[%clk 0:02:57.4]} 2. c4 {[%clk 0:03:00.9]}
2... g6 {[%clk 0:02:57.3]} 3. f3 {[%clk 0:03:00.9]} 3... Bg7 {[%clk 0:02:53.1]}
4. e4 {[%clk 0:03:01]} 4... d6 {[%clk 0:02:53.3]} 5. Nc3 {[%clk 0:03:01.6]} 5...
O-O {[%clk 0:02:53.5]} 6. Be3 {[%clk 0:03:02.1]} 6... a6 {[%clk 0:02:50.5]} 7.
a3 {[%clk 0:02:56.1]} 7... Nc6 {[%clk 0:02:47.4]} 8. Nge2 {[%clk 0:02:55.1]}
8... b5 {[%clk 0:02:47.2]} 9. cxb5 {[%clk 0:02:53.3]} 9... axb5 {[%clk
0:02:48.1]} 10. Nxb5 {[%clk 0:02:53.2]} 10... Ba6 {[%clk 0:02:47.2]} 11. Nec3
{[%clk 0:02:50.7]} 11... Na5 {[%clk 0:02:45]} 12. b4 {[%clk 0:02:44.4]} 12...
Nb7 {[%clk 0:02:44.5]} 13. Na4 {[%clk 0:01:54]} 13... c6 {[%clk 0:02:32.6]} 14.
Nbc3 {[%clk 0:01:53.8]} 14... Bxf1 {[%clk 0:02:32.3]} 15. Rxf1 {[%clk
0:01:53.6]} 15... Nd7 {[%clk 0:02:20]} 16. Qd2 {[%clk 0:01:35.5]} 16... e5
{[%clk 0:02:10.9]} 17. dxe5 {[%clk 0:01:29.3]} 17... Nxe5 {[%clk 0:02:10.1]} 18.
Nb2 {[%clk 0:01:26.5]} 18... d5 {[%clk 0:02:05.1]} 19. Bd4 {[%clk 0:01:07.4]}
19... dxe4 {[%clk 0:01:23.6]} 20. Nxe4 {[%clk 0:01:06.5]} 20... Nxf3+ {[%clk
0:01:05.6]} 21. Rxf3 {[%clk 0:00:56.2]} 21... Bxd4 {[%clk 0:01:04.8]} 22. Kf1
{[%clk 0:00:24.2]} 22... Re8 {[%clk 0:01:04.6]} 23. Qf4 {[%clk 0:00:18.1]} 23...
Bxb2 {[%clk 0:00:43.1]} 24. Qxf7+ {[%clk 0:00:17.2]} 24... Kh8 {[%clk
0:00:43.5]} 25. Nf6 {[%clk 0:00:08.2]} 25... Bxf6 {[%clk 0:00:38.2]} 26. Rxf6
{[%clk 0:00:08.3]} 26... Nd6 {[%clk 0:00:25.2]} 0-1